bitfinex/quotes_ETHUSD_20240707
["timestamp","ask_amount","ask_price","bid_price","bid_amount"]
[1720312334995,1.1297561,3064.0,3063.6,5.74545]
[1720312335215,1.01781008,3064.4,3063.9,0.03182996]
[1720312335414,3.26328,3064.4,3063.7,3.26402]
[1720312335738,2.79056498,3064.3,3063.6,2.4814]
[1720312335893,4.75200076,3064.2,3063.8,0.03166442]
[1720312336095,1.12979325,3064.1,3063.7,0.03167187]
[1720312336296,1.12979325,3064.1,3063.9,0.03165696]
[1720312336509,1.12979325,3064.0,3063.8,0.03168363]
[1720312336735,6.26344,3064.3,3063.6,5.74551]
[1720312336936,1.67978318,3064.2,3063.6,5.74551]
[1720312337095,1.12978318,3064.1,3063.6,5.74551]
[1720312337294,1.12978318,3064.0,3063.6,5.74551]
[1720312337516,0.55,3064.2,3063.6,5.74551]
[1720312337727,1.12977604,3064.1,3063.6,5.74551]
[1720312337922,0.55,3064.2,3063.6,5.74551]
[1720312337923,1.12977604,3064.0,3063.6,5.74551]
[1720312338254,1.12977604,3063.9,3063.6,2.4814]
[1720312338432,4.12977604,3064.1,3063.6,2.4814]
[1720312338739,1.1298246,3064.0,3063.6,2.4814]
[1720312338899,1.1298246,3063.9,3063.6,2.4814]
[1720312339235,1.1298246,3063.8,3063.5,3.2642]
[1720312339433,0.79433946,3064.0,3063.3,9.01015]
[1720312339650,1.12984649,3063.9,3063.4,3.26434]
[1720312339831,1.12984649,3063.8,3063.4,3.26434]
[1720312340035,0.79433946,3064.0,3063.4,3.26434]
[1720312340036,1.12984649,3063.7,3063.4,3.26434]
[1720312340214,0.80757595,3063.9,3063.4,3.26434]
[1720312340409,1.12983257,3063.8,3063.4,3.26434]
[1720312340614,1.12983257,3063.7,3063.4,3.26434]
[1720312340835,3.80757595,3063.9,3063.4,3.26434]
[1720312341040,1.1298326,3063.8,3063.4,3.26434]
[1720312341211,1.1298326,3063.7,3063.4,3.26434]
[1720312341415,1.1298326,3063.8,3063.4,3.26434]
[1720312341930,1.12984558,3063.7,3063.4,3.26434]
[1720312342138,3.80757595,3063.9,3063.4,3.26434]
[1720312342342,1.12983236,3063.8,3063.4,3.26434]
[1720312342518,3.80757595,3063.9,3063.4,3.26434]
[1720312342519,1.12983236,3063.7,3063.4,3.26434]
[1720312342716,1.12983236,3063.8,3063.4,3.26434]
[1720312343144,1.80506435,3063.8,3063.3,2.4814]
[1720312343345,2.79070228,3063.7,3063.3,2.4814]
[1720312343542,1.66081087,3063.6,3063.4,0.0317447]
[1720312343853,2.79071232,3063.5,3063.3,2.4814]
[1720312344055,1.12990145,3063.5,3063.3,2.4814]
[1720312344222,1.66100823,3063.4,3063.3,2.4814]
[1720312344417,1.12993806,3063.4,3063.3,2.4814]
[1720312344622,2.79094629,3063.4,3063.3,2.4814]
[1720312345123,1.66100823,3063.4,3063.3,2.4814]
[1720312345320,2.7909783,3063.4,3063.3,2.4814]
[1720312346318,2.7909783,3063.4,3063.3,9.0103]
[1720312346522,12.1829337,3063.9,3063.6,2.3196]
[1720312346523,1.02176022,3063.8,3063.6,2.3196]
[1720312346853,1.12983671,3063.7,3063.6,5.58371]
[1720312347019,1.66077648,3063.8,3063.6,5.58371]
[1720312347225,2.79057061,3063.7,3063.6,5.58371]
[1720312347618,2.79057061,3063.7,3063.6,2.3196]
[1720312348021,5.37779861,3063.7,3063.3,3.26435]
[1720312348235,5.2360249,3063.6,3063.3,3.26435]
[1720312348437,3.81249541,3063.5,3063.3,3.26435]
[1720312348635,2.79073519,3063.4,3063.3,3.26435]
[1720312351757,1.12988917,3063.4,3063.3,8.8484]
[1720312351959,1.36234696,3063.8,3063.7,5.58362]
[1720312351960,1.02176022,3063.8,3063.7,5.58362]
[1720312352130,2.68339842,3063.8,3063.7,5.58362]
[1720312352331,8.23672247,3063.8,3063.7,5.58362]
[1720312352575,6.81318824,3063.8,3063.7,5.58362]
[1720312352749,7.2141583,3063.8,3063.7,3.26402]
[1720312352950,8.99035132,3063.8,3063.7,0.03166945]
[1720312353357,10.35392965,3063.8,3063.3,3.26437]
[1720312353549,1.02265508,3063.4,3063.3,3.26437]
[1720312353746,2.7905976,3063.4,3063.3,3.26437]
[1720312353968,5.23701,3063.4,3063.3,3.26437]
[1720312354755,3.81325268,3063.4,3063.3,3.26437]
[1720312354957,4.10722773,3063.4,3063.3,3.26437]
[1720312355170,5.23719985,3063.4,3063.3,3.26437]
[1720312355359,5.23719985,3063.4,3063.1,3.26458]
[1720312355663,5.23719985,3063.4,3063.0,2.3196]
[1720312355664,2.7907799,3063.3,3063.0,2.3196]
[1720312355870,1.12997212,3063.2,3063.0,2.3196]
[1720312356377,1.12997212,3063.2,3063.1,3.26466]
[1720312356544,2.7910633,3063.2,3063.1,3.26466]
[1720312358150,1.66109118,3063.2,3063.1,3.26466]
[1720312358472,3.81373141,3063.2,3063.1,3.29637661]
[1720312358852,4.21488033,3063.2,3063.1,0.03171661]
[1720312359181,4.94325095,3063.2,3063.1,0.03171661]
[1720312359343,4.94325095,3063.2,3062.9,3.26483]
[1720312359549,1.0232168,3063.0,3062.9,3.26483]
[1720312359751,5.23809713,3063.0,3062.9,3.26483]
[1720312360178,4.21488033,3063.0,3062.9,3.26483]
[1720312360691,4.21488033,3063.0,3062.7,2.3196]
[1720312360692,6.30761492,3063.0,3062.7,3.26502]
[1720312360999,5.23821228,3062.9,3062.7,3.26502]
[1720312361198,5.23837081,3062.8,3062.7,3.26502]
[1720312361366,5.23853058,3062.8,3062.7,3.26502]
[1720312361551,5.23853058,3062.8,3062.5,3.26521]
[1720312361758,5.23853058,3062.8,3062.6,3.26519]
[1720312361759,2.68463308,3062.7,3062.6,3.26519]
[1720312361952,5.23883728,3062.7,3062.6,3.26519]
[1720312362155,4.21529538,3062.7,3062.6,3.26519]
[1720312362393,5.23887118,3062.7,3062.4,8.85028]
[1720312362592,5.238911,3062.6,3062.4,5.58492]
[1720312362795,3.81483138,3062.5,3062.4,3.26532]
[1720312363012,2.68465253,3062.5,3062.4,3.26532]
[1720312363293,2.68465253,3062.5,3062.2,3.2656]
[1720312363294,12.04604892,3062.5,3061.7,2.3196]
[1720312363504,1.02339597,3062.0,3061.6,3.2662]
[1720312363806,1.02339597,3061.8,3061.4,5.586]
[1720312363990,1.66109118,3061.7,3061.1,5.58632]
[1720312364163,2.44796858,3061.6,3061.2,3.26668]
[1720312364362,2.68448715,3061.5,3061.2,3.26668]
[1720312364624,1.0225913,3061.5,3061.2,3.26668]
[1720312364835,1.0225913,3061.5,3061.1,2.3196]
[1720312364836,1.0225913,3061.6,3061.1,5.58638]
[1720312364992,1.6620914,3061.5,3061.1,5.58638]
[1720312365187,1.0225913,3061.6,3061.2,3.26668]
[1720312365692,1.0225913,3061.7,3061.2,3.26668]
[1720312366017,1.66208176,3061.6,3061.2,3.26668]
[1720312366315,1.0225913,3061.7,3061.2,3.26668]
[1720312366503,1.0225913,3061.8,3061.2,3.26668]
[1720312366822,1.66203289,3061.7,3061.2,3.26668]
[1720312367278,1.0225913,3061.8,3061.2,3.26668]
[1720312367710,1.0200486,3061.9,3061.2,3.26668]
[1720312367882,1.6620468,3061.8,3061.2,3.26668]
[1720312368349,1.0200486,3061.9,3061.2,3.26668]
[1720312369010,4.52469099,3062.0,3061.2,3.26668]
[1720312369387,2.68209888,3061.9,3061.2,3.26668]
[1720312369644,4.52469099,3062.0,3061.2,3.26668]
[1720312369922,0.4524691,3061.9,3061.2,3.26668]
[1720312370083,4.52469099,3062.0,3061.4,2.3439]
[1720312370084,1.25884099,3062.0,3061.4,2.3439]
[1720312370280,0.23879239,3062.0,3061.4,5.61029]
[1720312370923,0.23879239,3062.0,3061.5,3.26631]
[1720312371546,1.0200486,3062.5,3061.5,0.06532521]
[1720312371700,1.0200486,3062.8,3062.1,3.26572]
[1720312372042,3.3887486,3063.0,3062.2,3.2656]
[1720312372180,3.26498,3062.8,3062.1,3.26572]
[1720312372380,0.92114631,3062.7,3062.1,3.26572]
[1720312372817,3.92114631,3062.7,3062.1,3.26572]
[1720312373322,3.92114631,3062.7,3062.2,3.29576026]
[1720312373527,0.92114631,3062.7,3062.2,3.29576026]
[1720312374315,3.0,3062.8,3062.2,3.29576026]
[1720312374828,7.2848386,3063.0,3062.2,3.29576026]
[1720312375127,2.21153392,3062.9,3062.2,3.29576026]
[1720312375330,3.55,3062.9,3062.2,3.29576026]
[1720312375813,0.55,3062.9,3062.2,3.29576026]
[1720312376809,2.32195486,3062.9,3062.2,3.29576026]
[1720312377009,8.58684486,3062.9,3062.2,3.29576026]
[1720312377413,8.58684486,3062.9,3062.2,0.03014026]
[1720312377414,2.3412,3062.7,3062.2,0.03014026]
[1720312377729,5.3412,3062.7,3062.0,3.26576]
[1720312377935,0.96262486,3062.6,3062.3,0.03019769]
[1720312378110,3.96262486,3062.6,3062.0,3.26576]
[1720312378303,3.96262486,3062.6,3062.1,3.29593705]
[1720312380134,3.96262486,3062.6,3062.2,3.26562]
[1720312380448,2.32195486,3062.9,3062.3,3.26551]
[1720312380449,3.0,3062.7,3062.3,3.26551]
[1720312380656,3.0,3063.0,3062.5,3.2653]
[1720312380942,5.10658448,3063.0,3062.6,0.03021137]
[1720312381456,5.10658448,3063.0,3062.4,5.63148]
[1720312381635,1.13023409,3062.9,3062.4,3.26538]
[1720312381956,5.10658448,3063.0,3062.5,3.29544276]
[1720312383455,7.48,3063.1,3062.7,2.3661]
[1720312383666,7.48,3063.1,3063.0,3.26477]
[1720312383951,1.01805563,3063.6,3063.1,3.2646]
[1720312383952,7.48,3063.6,3063.1,3.2646]
[1720312384346,7.48,3063.6,3063.2,3.29464407]
[1720312385334,7.48,3063.6,3063.4,3.26428]
[1720312385841,7.48,3063.6,3063.5,0.02993266]
[1720312386234,10.48,3063.6,3063.5,0.02993266]
[1720312386643,10.48,3063.6,3063.4,3.26428]
[1720312386843,3.0,3063.6,3063.4,3.26428]
[1720312387058,4.01805563,3063.9,3063.4,3.26428]
[1720312387255,2.82972434,3063.8,3063.4,3.26428]
[1720312387432,3.0,3063.7,3063.4,3.26428]
[1720312387635,1.69980556,3063.8,3063.4,3.26428]
[1720312388542,3.0,3063.9,3063.7,3.26394]
[1720312388858,3.0,3063.9,3063.8,3.26392]
[1720312389248,3.0,3063.9,3063.8,3.29364999]
[1720312389567,3.0,3063.9,3063.8,3.26392]
[1720312390339,3.0,3063.9,3063.8,3.29364999]
[1720312390582,4.048,3063.9,3063.8,0.02972999]
[1720312391073,4.048,3063.9,3063.7,3.26393]
[1720312391276,7.48,3064.0,3063.9,3.26381]
[1720312391562,7.48,3064.5,3064.2,3.26348]
[1720312391767,7.53689866,3064.8,3064.2,3.26348]
[1720312391996,7.53689866,3064.8,3064.3,0.02959419]
[1720312392265,0.85565505,3064.7,3064.3,0.02959419]
[1720312392475,0.85565505,3064.7,3064.2,3.26341]
[1720312392835,0.85565505,3064.7,3064.3,0.02959419]
[1720312393036,0.55,3064.6,3064.3,0.02959419]
[1720312393265,0.55,3064.6,3064.2,3.26339]
[1720312393469,1.73856551,3064.6,3064.4,0.02958673]
[1720312393668,4.73856551,3064.6,3064.3,0.02946207]
[1720312393870,4.73856551,3064.6,3064.5,0.02944716]
[1720312394084,4.73856551,3064.6,3064.4,0.02945461]
[1720312394251,4.73856551,3064.6,3064.5,0.02944716]
[1720312394570,4.73856551,3064.6,3064.3,3.26338]
[1720312394765,4.73856551,3064.6,3064.5,0.02944716]
[1720312394971,4.73856551,3064.6,3064.4,0.02945461]
[1720312395136,4.73856551,3064.6,3064.5,0.02944716]
[1720312395662,4.73856551,3064.6,3064.3,3.26338]
[1720312395856,4.73856551,3064.6,3064.5,0.02943275]
[1720312396064,4.73856551,3064.6,3064.4,0.0294402]
[1720312396373,4.73856551,3064.6,3064.5,0.02943275]
[1720312396970,4.73856551,3064.6,3064.5,0.02912521]
[1720312397347,4.73856551,3064.6,3064.3,3.26338]
[1720312397557,4.73856551,3064.6,3064.5,0.02912521]
[1720312397748,4.73856551,3064.6,3064.4,0.02913267]
[1720312398059,4.73856551,3064.6,3064.5,0.02912521]
[1720312399461,4.73856551,3064.6,3064.2,3.26339]
[1720312399665,0.55942206,3064.5,3064.3,3.26331]
[1720312399908,2.2673,3064.4,3064.3,0.02914012]
[1720312400077,6.94704482,3064.4,3064.3,0.02914012]
[1720312400276,6.94704482,3064.4,3063.7,3.26398]
[1720312400277,6.9470702,3064.4,3063.4,3.26429]
[1720312400502,1.6797702,3064.3,3063.6,3.26411]
[1720312400797,1.6797702,3064.3,3063.8,3.26391]
[1720312400798,0.69470702,3064.2,3063.8,3.26391]
[1720312401098,0.69470702,3064.2,3063.9,0.02922999]
[1720312401301,0.69470702,3064.2,3063.8,3.26391]
[1720312401468,0.69470702,3064.2,3063.7,3.26396]
[1720312401669,0.69470702,3064.2,3063.8,0.02930712]
[1720312401894,0.4244707,3064.1,3063.8,0.02930712]
[1720312402262,0.4244707,3064.1,3063.8,3.29319712]
[1720312402498,0.4244707,3064.1,3063.8,6.55704712]
[1720312402906,3.55,3064.3,3063.9,3.2638]
[1720312403069,3.55,3064.3,3064.0,0.02930662]
[1720312404066,3.55,3064.3,3063.8,3.26385]
[1720312404067,3.55,3064.3,3063.8,6.52768]
[1720312404388,3.55,3064.3,3063.9,3.29309408]
[1720312404975,3.55,3064.3,3063.9,0.02931408]
[1720312405196,0.58173,3064.2,3063.9,0.02931408]
[1720312405512,1.67979543,3064.1,3063.6,3.26409]
[1720312405689,0.55,3064.1,3063.6,3.26409]
[1720312406009,0.55,3064.1,3063.7,3.29331256]
[1720312408805,1.12979643,3064.0,3063.7,3.29331256]
[1720312409017,1.12979643,3063.9,3063.7,3.29331256]
[1720312409195,1.12979643,3064.0,3063.7,3.29331256]
[1720312410419,1.12979643,3064.0,3063.7,6.55725256]
[1720312410615,1.12979643,3064.0,3063.8,3.2639]
[1720312410982,1.12979643,3064.0,3063.9,0.02945579]
[1720312411397,0.55,3064.1,3063.8,3.2639]
[1720312411590,1.12979398,3064.0,3063.8,3.2639]
[1720312411794,1.12979398,3063.9,3063.8,3.2639]
[1720312412020,1.12979398,3064.0,3063.8,3.2639]
[1720312412720,1.12979398,3064.0,3063.8,3.26384]
[1720312412911,1.12979398,3064.1,3063.8,2.3927]
[1720312413108,3.0,3064.3,3064.2,3.26349]
[1720312413285,4.12964209,3064.3,3064.2,3.26349]
[1720312413486,1.12964209,3064.3,3064.2,3.26349]
[1720312414616,3.0,3064.6,3064.2,3.26349]
[1720312414812,1.12964493,3064.5,3064.2,3.26349]
[1720312415122,1.12964493,3064.4,3064.2,3.26349]
[1720312415309,1.12964493,3064.3,3064.2,3.26349]
[1720312417186,1.12964493,3064.3,3064.2,6.52698]
[1720312417598,1.12964493,3064.3,3064.2,6.55631732]
[1720312417814,7.48,3064.7,3064.5,3.26313]
[1720312418027,1.12953522,3064.6,3064.5,3.26313]
[1720312418194,7.48,3064.7,3064.5,3.26313]
[1720312418392,1.12951616,3064.6,3064.5,3.29242334]
[1720312419320,2.78994312,3064.6,3064.5,3.29242334]
[1720312420793,2.78994312,3064.6,3064.5,3.26313]
[1720312421111,2.78997527,3064.6,3064.5,3.26313]
[1720312423632,2.78997527,3064.6,3064.5,8.919]
[1720312423835,7.48,3064.7,3064.6,6.52612]
[1720312425591,9.140175,3064.7,3064.6,6.52612]
[1720312425792,10.26954832,3064.7,3064.6,6.52612]
[1720312426521,9.140175,3064.7,3064.6,6.52612]
[1720312427819,7.48,3064.7,3064.6,6.52612]
[1720312428505,1.0226686,3065.1,3064.9,3.26274]
[1720312428506,7.48,3065.0,3064.9,3.26274]
[1720312428694,1.0226686,3065.1,3065.0,3.26264]
[1720312428890,4.10585233,3065.1,3065.0,3.26264]
[1720312429107,8.23520818,3065.1,3065.0,3.26264]
[1720312429635,8.23550479,3065.1,3065.0,3.26264]
[1720312429924,8.23547166,3065.1,3065.0,3.26264]
[1720312430695,5.68312784,3065.1,3065.0,3.26264]
[1720312430896,8.23543724,3065.1,3065.0,3.26264]
[1720312431426,8.23544506,3065.1,3065.0,3.26264]
[1720312431722,7.21250516,3065.1,3065.0,3.26264]
[1720312432528,8.98860196,3065.1,3065.0,3.26264]
[1720312432829,10.3521601,3065.1,3065.0,3.26264]
[1720312433195,8.98860196,3065.1,3065.0,3.26264]
[1720312433394,8.5760633,3065.1,3065.0,3.26264]
[1720312433623,7.21250516,3065.1,3065.0,3.26264]
[1720312433992,4.66019576,3065.1,3065.0,3.26264]
[1720312434328,8.57606692,3065.1,3065.0,3.26264]
[1720312434742,7.21250878,3065.1,3065.0,3.26264]
[1720312434924,8.57606692,3065.1,3065.0,3.26264]
[1720312435429,8.57604488,3065.1,3065.0,3.26264]
[1720312436541,10.35214944,3065.1,3065.0,3.26264]
[1720312437345,7.79983642,3065.1,3065.0,3.26264]
[1720312437525,10.35261118,3065.1,3065.0,3.26264]
[1720312437731,7.80023683,3065.1,3065.0,3.26264]
[1720312438046,10.35256603,3065.1,3065.0,3.26264]
[1720312438841,10.35258573,3065.1,3065.0,3.26264]
[1720312439414,8.98862718,3065.1,3065.0,3.26264]
[1720312439825,10.35258573,3065.1,3065.0,3.26264]
[1720312440750,10.3525697,3065.1,3065.0,3.26264]
[1720312441153,10.3525697,3065.1,3064.8,3.26277]
[1720312441333,6.61136567,3065.0,3064.8,3.26277]
[1720312441521,4.21250659,3064.9,3064.8,3.26277]
[1720312442264,8.0520087,3064.9,3064.7,3.26295]
[1720312442423,3.81211705,3064.8,3064.7,3.26295]
[1720312443050,1.66017372,3064.8,3064.7,3.26295]
[1720312443254,3.81224557,3064.8,3064.7,3.26295]
[1720312443572,5.2353624,3064.8,3064.7,3.26295]
[1720312443727,2.78962286,3064.8,3064.7,3.26295]
[1720312443935,2.78962286,3064.8,3064.7,5.56345]
[1720312444271,2.78962286,3064.8,3064.7,8.82641]
[1720312444454,4.02262271,3065.1,3064.8,3.26281]
[1720312444651,2.78941711,3065.0,3064.9,3.26274]
[1720312446142,3.81203982,3065.0,3064.9,3.26274]
[1720312446339,2.78947135,3065.0,3064.9,6.52548]
[1720312446555,1.12936137,3065.0,3064.9,6.52548]
[1720312446742,3.0,3065.2,3065.1,3.26253]
[1720312446947,6.81181053,3065.2,3065.1,3.26253]
[1720312447942,7.21225786,3065.2,3065.1,3.26253]
[1720312448148,6.81165363,3065.2,3065.1,3.26253]
[1720312448843,3.81165363,3065.2,3065.1,3.26253]
[1720312449073,2.78934983,3065.2,3065.1,3.26253]
[1720312449469,1.66007462,3065.2,3065.1,3.26253]
[1720312449772,2.78930391,3065.2,3065.1,6.52506]
[1720312450537,4.70406171,3065.6,3065.1,6.52506]
[1720312450538,1.02243702,3065.6,3065.3,3.26232]
[1720312450741,2.78901315,3065.5,3065.4,3.26221]
[1720312451070,3.81145017,3065.5,3065.4,3.26221]
[1720312451481,2.78901315,3065.5,3065.4,3.26221]
[1720312451874,3.81145017,3065.5,3065.4,3.26221]
[1720312452050,2.78901315,3065.5,3065.4,3.26221]
[1720312452750,2.78902214,3065.5,3065.4,3.26221]
[1720312452982,2.78903357,3065.5,3065.4,6.52442]
[1720312453158,1.12914034,3065.5,3065.4,6.52442]
[1720312455852,1.65977683,3065.5,3065.4,6.52442]
[1720312456045,1.02243702,3065.7,3065.6,6.524]
[1720312456246,3.8112772,3065.7,3065.6,6.524]
[1720312456484,3.81162327,3065.7,3065.6,6.524]
[1720312456957,5.23425154,3065.7,3065.6,6.524]
[1720312457178,5.23425154,3065.7,3065.1,2.3134]
[1720312457179,5.57518045,3065.7,3065.4,3.26212]
[1720312457354,2.68239593,3065.6,3065.5,3.26208]
[1720312457540,5.5753467,3065.6,3065.4,3.26212]
[1720312457759,5.23443654,3065.5,3065.4,3.26212]
[1720312458348,4.21163107,3065.5,3065.4,3.26212]
[1720312458544,5.02778555,3065.5,3065.0,3.26255]
[1720312458746,1.02307226,3065.2,3064.9,3.26726823]
[1720312458986,3.81220807,3065.1,3064.9,3.26726823]
[1720312459160,1.65999552,3065.0,3064.9,3.26726823]
[1720312459363,3.81237284,3065.0,3064.9,3.26726823]
[1720312459565,5.23535545,3065.0,3064.9,3.26726823]
[1720312459983,4.21228319,3065.0,3064.9,3.26726823]
[1720312460316,4.21228319,3065.0,3064.9,0.00454823]
[1720312461044,5.03663515,3065.0,3064.9,0.00454823]
[1720312461252,5.58663515,3065.0,3064.9,0.00454823]
[1720312462249,4.16382389,3065.0,3064.9,0.00454823]
[1720312462478,5.58696416,3065.0,3064.9,0.00454823]
[1720312463682,4.45748775,3065.0,3064.9,0.00454823]
[1720312463849,5.58696089,3065.0,3064.9,0.00454823]
[1720312464963,7.29306118,3065.0,3064.9,0.00454823]
[1720312465369,5.58696089,3065.0,3064.9,0.00454823]
[1720312465567,4.45748593,3065.0,3064.9,0.00454823]
[1720312465764,5.58686688,3065.0,3064.9,0.00454823]
[1720312465985,1.65999552,3065.0,3064.9,0.00454823]
[1720312466195,3.91750847,3065.0,3064.9,0.00454823]
[1720312466460,5.57750399,3065.0,3064.9,0.00454823]
[1720312467088,5.57737415,3065.0,3064.9,0.00454823]
[1720312467408,5.91869086,3065.0,3064.9,0.00454823]
[1720312469003,5.91937692,3065.0,3064.9,0.00454823]
[1720312469174,4.21245104,3065.0,3064.9,0.00454823]
[1720312470387,6.29894624,3065.0,3064.9,0.00454823]
[1720312470599,5.91952309,3065.0,3064.9,0.00454823]
[1720312471567,4.21245104,3065.0,3064.9,0.00454823]
[1720312472274,4.21244038,3065.0,3064.9,0.00454823]
[1720312472474,5.9198168,3065.0,3064.9,0.00454823]
[1720312472688,4.21244038,3065.0,3064.9,0.00454823]
[1720312473192,5.9198168,3065.0,3064.9,0.00454823]
[1720312474290,4.21244038,3065.0,3064.9,0.00454823]
[1720312474609,5.91996313,3065.0,3064.9,0.00454823]
[1720312474828,4.21244038,3065.0,3064.9,0.00454823]
[1720312475108,5.92004335,3065.0,3064.9,0.00454823]
[1720312475302,4.21244038,3065.0,3064.9,0.00454823]
[1720312475622,3.08304993,3065.0,3064.9,0.00454823]
[1720312475830,4.21245734,3065.0,3064.9,0.00454823]
[1720312476040,4.21251939,3065.0,3064.9,0.00454823]
[1720312477109,4.21253803,3065.0,3064.9,0.00454823]
[1720312478884,4.21251306,3065.0,3064.9,0.00454823]
[1720312482218,4.21254102,3065.0,3064.9,0.00454823]
[1720312482724,7.22607657,3065.0,3064.9,0.00454823]
[1720312482907,7.77607657,3065.0,3064.9,0.00454823]
[1720312483113,9.82511496,3065.0,3064.9,0.00454823]
[1720312483320,7.77607657,3065.0,3064.9,0.00454823]
[1720312484024,11.03871657,3065.0,3064.9,0.00454823]
[1720312484919,13.08775496,3065.0,3064.9,0.00454823]
[1720312485110,14.03871657,3065.0,3064.9,0.00454823]
[1720312485305,10.52838719,3065.0,3064.9,0.00454823]
[1720312485514,14.03862475,3065.0,3064.9,0.00454823]
[1720312485699,12.90903102,3065.0,3064.9,0.00454823]
[1720312485899,17.30129235,3065.0,3064.9,0.00454823]
[1720312487020,17.301296,3065.0,3064.9,0.00454823]
[1720312488413,12.66143346,3065.0,3064.9,0.00454823]
[1720312488632,17.30128263,3065.0,3064.9,0.00454823]
[1720312489825,16.48547168,3065.0,3064.9,0.00454823]
[1720312490158,20.06968263,3065.0,3064.9,0.00454823]
[1720312491032,20.61968263,3065.0,3064.9,0.00454823]
[1720312493864,22.6669204,3065.0,3064.9,0.00454823]
[1720312494157,20.61968263,3065.0,3064.9,0.00454823]
[1720312494359,18.53280503,3065.0,3064.9,0.00454823]
[1720312495016,22.66725239,3065.0,3064.9,0.00454823]
[1720312495368,15.97983346,3065.0,3064.9,0.00454823]
[1720312495509,22.66736978,3065.0,3064.9,0.00454823]
[1720312496538,22.66724669,3065.0,3064.9,0.00454823]
[1720312497864,22.58207878,3065.0,3064.9,0.00454823]
[1720312498360,22.58206552,3065.0,3064.9,0.00454823]
[1720312501026,22.58121859,3065.0,3064.9,0.00454823]
[1720312501227,14.03817859,3065.0,3064.9,0.00454823]
[1720312501442,14.98717859,3065.0,3064.9,0.00454823]
[1720312502431,8.8975829,3065.0,3064.9,0.00454823]
[1720312502737,6.85002512,3065.0,3064.9,2.42414823]
[1720312503137,4.76298161,3065.0,3064.9,2.42414823]
[1720312503346,5.92064357,3065.0,3064.9,2.42414823]
[1720312503545,4.21298161,3065.0,3064.9,2.42414823]
[1720312503853,5.92046923,3065.0,3064.9,2.42414823]
[1720312504029,4.21240742,3065.0,3064.9,2.42414823]
[1720312504360,4.21241116,3065.0,3064.9,2.42414823]
[1720312505378,4.21238651,3065.0,3064.9,2.42414823]
[1720312506041,4.212594,3065.0,3064.9,2.42414823]
[1720312506245,5.92119315,3065.0,3064.9,2.42414823]
[1720312506470,4.212594,3065.0,3064.9,2.42414823]
[1720312507132,1.66020301,3065.0,3064.9,2.42414823]
[1720312507331,4.21256594,3065.0,3064.9,0.00454823]
[1720312507758,6.29955376,3065.0,3064.9,0.00454823]
[1720312510388,5.92126397,3065.0,3064.9,2.33654823]
[1720312511096,4.2126555,3065.0,3064.9,2.33654823]
[1720312511453,4.2126555,3065.0,3064.9,8.86202823]
[1720312511454,5.92113703,3065.0,3064.9,8.86202823]
[1720312511654,1.66020301,3065.0,3064.9,9.81102823]
[1720312512191,8.84685608,3065.3,3065.2,3.26242]
[1720312512192,8.50519569,3065.3,3065.2,3.26242]
[1720312512400,11.58770147,3065.3,3065.2,8.85684]
[1720312512557,9.13982006,3065.3,3065.2,8.85684]
[1720312512753,11.58770364,3065.3,3065.2,8.85684]
[1720312513371,10.16501575,3065.3,3065.2,8.85684]
[1720312513559,9.13982006,3065.3,3065.2,8.85684]
[1720312513762,10.1648485,3065.3,3065.2,8.85684]
[1720312513981,11.58756621,3065.3,3065.2,8.85684]
[1720312514483,9.13982006,3065.3,3065.2,8.85684]
[1720312514784,2.6848485,3065.3,3065.2,3.26242]
[1720312515196,4.10760356,3065.3,3065.2,3.26242]
[1720312515491,1.65982006,3065.3,3065.2,3.26242]
[1720312515790,2.6848485,3065.3,3065.2,3.26242]
[1720312516396,4.10763954,3065.3,3065.1,3.26244]
[1720312516573,1.65982006,3065.2,3064.9,5.58241823]
[1720312516772,2.6848485,3065.2,3065.0,3.26263]
[1720312516972,4.10775717,3065.1,3065.0,6.52527]
[1720312517285,1.65982006,3065.1,3065.0,6.52527]
[1720312517467,1.02502844,3065.3,3065.0,3.26263]
[1720312517667,1.65993988,3065.2,3065.0,3.26263]
[1720312518289,1.02502844,3065.3,3065.2,3.26242]
[1720312518465,4.10781295,3065.3,3065.2,3.26242]
[1720312518677,4.21204507,3065.3,3065.2,3.26242]
[1720312518880,3.08278451,3065.3,3065.2,3.26242]
[1720312519398,4.21203933,3065.3,3065.2,3.26242]
[1720312519701,4.21203933,3065.3,3064.9,3.26722823]
[1720312519920,1.65995719,3065.2,3064.9,6.52989823]
[1720312520097,2.68379916,3065.1,3064.9,6.52989823]
[1720312520311,1.65995719,3065.0,3064.9,3.26721823]
[1720312521414,1.02384197,3065.1,3064.9,3.26721823]
[1720312521710,1.66006371,3065.0,3064.9,3.26721823]
[1720312522707,1.02384197,3065.2,3065.0,3.26264]
[1720312522884,1.6600546,3065.1,3065.0,3.26264]
[1720312524808,1.6600546,3065.1,3064.9,0.00454823]
[1720312524809,2.68376704,3065.1,3064.9,0.00454823]
[1720312525015,1.6600546,3065.0,3064.9,0.00454823]
[1720312526421,4.61732496,3065.0,3064.9,0.00454823]
[1720312526612,5.98216913,3065.0,3064.9,0.00454823]
[1720312527220,5.98221173,3065.0,3064.9,0.00454823]
[1720312527720,4.61747653,3065.0,3064.9,0.00454823]
[1720312529720,2.0649263,3065.0,3064.9,0.00454823]
[1720312529920,4.21264528,3065.0,3064.9,0.00454823]
[1720312531313,5.57737566,3065.0,3064.9,0.00454823]
[1720312531714,4.21264528,3065.0,3064.9,0.00454823]
[1720312533150,4.21260279,3065.0,3064.9,0.00454823]
[1720312533318,1.6600546,3065.0,3064.9,0.00454823]
[1720312533495,4.21260864,3065.0,3064.9,0.00454823]
[1720312534638,4.21260629,3065.0,3064.9,0.00454823]
[1720312535456,5.91865105,3065.0,3064.9,0.00454823]
[1720312535808,6.1746154,3065.0,3064.9,0.00454823]
[1720312536008,9.0086154,3065.0,3064.9,0.00454823]
[1720312536277,6.45606371,3065.0,3064.9,0.00454823]
[1720312536437,20.32770078,3065.0,3064.9,0.00454823]
[1720312536602,23.79838908,3065.0,3064.9,0.00454823]
[1720312536810,21.75089753,3065.0,3064.9,0.00454823]
[1720312539252,23.71289753,3065.0,3064.9,0.00454823]
[1720312539561,24.97230062,3065.0,3064.9,0.00454823]
[1720312539714,26.1019794,3065.0,3064.9,0.00454823]
[1720312539916,29.3646194,3065.0,3064.9,0.00454823]
[1720312540352,29.7059805,3065.0,3064.9,0.00454823]
[1720312540534,27.31706098,3065.0,3064.9,0.00454823]
[1720312541633,29.70526824,3065.0,3064.9,0.00454823]
[1720312542024,27.31706098,3065.0,3064.9,0.00454823]